Cogmind - Beta 17 @@@ ROGUE MODE // 2026.06.23 @ 11:20:47 Player: Lolterzard Result: Destroyed by G-47 Trooper with Particle Gun Performance ------------- Evolutions (0) 0 Regions Visited (3) 600 Robots Destroyed (38) 190 Value Destroyed (739) 739 Prototype IDs (0) 0 Alien Tech Used (0) 0 Bonus (67) 67 TOTAL SCORE: 1596 Bonus ------- Follower Combat Kills 67 Cogmind --------- Core Integrity 0/250 Matter 234/300 Energy 100/100 System Corruption 0% Temperature Cool (27) Movement Rolling (95) Ox1 Location -10/Subcaves Parts ------- > --- POWER (1) -------- (None) > --- PROPULSION (2) --- Wheel > --- UTILITY (2) ------ Improved Heat Sink Small Storage Unit > --- WEAPON (2) ------- Battle Rifle Light Cannon > --- INVENTORY (8) ---- Ion Engine Light Ion Engine Light Armor Plating Peak State ------------ > --- POWER ------------ Ion Engine > --- PROPULSION ------- Light Treads Light Treads > --- UTILITY ---------- Small Storage Unit Propulsion Shielding > --- WEAPON ----------- Light Assault Rifle Rocket Launcher > --- INVENTORY -------- Ion Engine Light Ion Engine Wheel Improved Heat Sink Light Armor Plating Light Assault Rifle Light Cannon Light Cannon [Rating: 9] Favorites ----------- Power Ion Engine Engine Ion Engine Propulsion Light Treads Treads Light Treads Wheel Wheel Utility Small Storage Unit Device Seismic Detector Storage Small Storage Unit Protection Propulsion Shielding Weapon Light Assault Rifle Energy Gun Medium Laser Ballistic Gun Light Assault Rifle Ballistic Cannon Light Cannon Launcher Rocket Launcher Build | -11 -10 -10 -10 ------- Run | Yrd Mat Min Sub Slots Evolved . | . . . . Power . | . . . . Propulsion . | . . . . Utility . | . . . . Weapon . | . . . . Parts Attached 21 | 8 6 1 6 Power 1 | 1 . . . Engine 1 | 1 . . . Core . | . . . . Reactor . | . . . . Propulsion 4 | 2 1 . 1 Treads 3 | 2 1 . . Leg . | . . . . Wheel 1 | . . . 1 Hover . | . . . . Flight . | . . . . Utility 5 | 3 1 . 1 Device 3 | 2 . . 1 Storage 1 | 1 . . . Processor . | . . . . Hackware . | . . . . Protection 1 | . 1 . . Artifact . | . . . . Weapon 11 | 2 4 1 4 Energy Gun 2 | 2 . . . Energy Cannon . | . . . . Ballistic Gun 5 | . 4 . 1 Ballistic Cannon 2 | . . . 2 Launcher 2 | . . 1 1 Special Weapon . | . . . . Impact Weapon . | . . . . Slashing Weapon . | . . . . Piercing Weapon . | . . . . Special Melee Weapon . | . . . . Unidentified Prototypes . | . . . . Parts Lost 11 | . 4 . 7 Power 1 | . . . 1 Propulsion 3 | . 1 . 2 Utility 3 | . 2 . 1 Weapon 4 | . 1 . 3 Highest Loss Streak 3 | . 3 . 3 To Critical Strikes . | . . . . Average Backups 6 | 2 6 7 6 Power 1 | . 1 2 2 Propulsion 1 | 1 2 1 . Utility 1 | . 1 2 1 Weapon 1 | . 2 2 1 Tool/Special . | . . . . Unused Backups 4 | . . 1 3 Power 2 | . . . 2 Propulsion 1 | . . 1 . Utility 1 | . . . 1 Weapon . | . . . . Tool/Special . | . . . . Average Slot Usage (%) 92 | . 97 100 84 Engine 13 | . 14 14 12 Treads 21 | . 27 28 13 Device 4 | . 11 . 1 Storage 14 | . 14 14 14 Protection 9 | . 1 14 12 Energy Gun 3 | . 8 . . Ballistic Gun 19 | . 18 27 14 Ballistic Cannon 2 | . . . 5 Launcher 3 | . . . 7 Peak Build Rating 9 | 7 8 8 9 Average Rating 7 | 5 7 7 7 On Entrance 5 | . 7 8 8 Avg Prop Armor Cover (%) 18 | 25 11 . . Naked Turns . | . . . . Heaviest Build 16 | 15 15 13 16 Greatest Support 40 | 40 40 40 40 Greatest Overweight (x) 4 | 4 . . 1 Average Overweight (x) . | . . . . Largest Inventory Capacity 8 | 8 8 8 8 Average Capacity 7 | 7 8 8 8 Most Carried 8 | 4 8 8 8 Average Carried 6 | 2 6 7 6 Final Capacity 8 | 8 8 8 8 Final Carried 8 | 4 8 8 3 Class Distribution -------------------- 100% | Mutant Dominant Class ---------------- Mutant | -10/Materials Mutant | -10/Mines Mutant | -10/Subcaves Resources | -11 -10 -10 -10 ----------- Run | Yrd Mat Min Sub Matter Collected 795 | 280 212 49 254 Remotely 74 | . 74 . . Salvage Created 893 | 103 513 30 247 Parts 72 | 4 41 5 22 Haulers Intercepted . | . . . . Recyclers Shooed 3 | . 3 . . Parts Field Recycled . | . . . . Retrieved Matter . | . . . . Parts Self-Destructed 17 | . . . 17 Prevented . | . . . . Parts Restored . | . . . . Kills | -11 -10 -10 -10 ------- Run | Yrd Mat Min Sub Combat Hostiles Destroyed 29 | . 17 3 9 Guns 21 | . 17 . 4 Cannons 2 | . . . 2 AOE 6 | . . 3 3 Classes Destroyed 8 | 2 4 . 2 Worker 1 | . 1 . . Builder 1 | . 1 . . Tunneler 4 | 1 1 2 . Recycler 1 | 1 . . . Turret 1 | . . . 1 Swarmer 15 | . 9 3 3 Grunt 10 | . 8 . 2 Subdweller 5 | . . . 5 Best Kill Streak 5 | 2 5 4 3 Combat Bots Only 5 | . 5 3 3 Max Kills in Single Turn 3 | 1 2 3 2 Gunslinging . | . . . . Exploded 2 | . . 2 1 Melee . | . . . . Uniques/NPCs Destroyed . | . . . . Combat | -11 -10 -10 -10 -------- Run | Yrd Mat Min Sub Hostile Shots Fired 183 | . 110 7 66 Missed 52 | . 31 1 20 Hits 131 | . 79 6 46 Projectile 131 | . 79 6 46 Critical Strikes 5 | . 2 . 3 Actively Blocked 1 | . . . 1 Damage Taken 1507 | . 747 50 710 Core 257 | . 128 27 102 Absorbed by Shields . | . . . . Redirected to Shielding 53 | . . 4 49 Core Remaining (%) 100 | 100 . . . Volleys Fired 104 | 5 59 4 36 Largest 2 | 2 2 2 2 Hottest 100 | 100 70 50 60 Shots Fired 204 | 10 117 7 70 Gun 167 | 10 117 5 35 Cannon 23 | . . . 23 Launcher 14 | . . 2 12 Special . | . . . . Kinetic 161 | . 98 5 58 Thermal 29 | 10 19 . . Explosive 14 | . . 2 12 Electromagnetic . | . . . . Robot Hit Streak 20 | 4 20 3 13 Robot Miss Streak 4 | 1 4 3 4 Penetration Max . | . . . . Secondary Targets 1 | . 1 . . Max Gunslinging Chain 1 | . 1 . . Shots Hit Robots 137 | 7 81 3 46 Core Hits 71 | 3 37 9 22 Critical Kills 1 | . . . 1 Critical Parts Destroyed . | . . . . Critical Strikes 3 | 1 . . 2 Burn 1 | 1 . . . Destroy 2 | . . . 2 Melee Attacks . | . . . . Impact . | . . . . Slashing . | . . . . Piercing . | . . . . Sneak Attacks . | . . . . Combat Hostiles . | . . . . Follow-up Attacks . | . . . . Damage Inflicted 2058 | 87 721 206 1044 Guns 1103 | 87 721 27 268 Cannons 302 | . . . 302 Explosions 653 | . . 179 474 Melee . | . . . . Ramming . | . . . . Kinetic 1153 | . 556 27 570 Thermal 252 | 87 165 . . Explosive 653 | . . 179 474 Electromagnetic . | . . . . Impact . | . . . . Slashing . | . . . . Piercing . | . . . . Highest Corruption . | . . . . Average Corruption . | . . . . Corruption Purged . | . . . . Corruption Blocked . | . . . . Overload Shots . | . . . . Overflow Damage . | . . . . Projectiles . | . . . . Explosions . | . . . . Melee . | . . . . Knockbacks 5 | . . . 5 Impact . | . . . . Kinetic 5 | . . . 5 Secondary . | . . . . Self-Inflicted Damage 17 | . . . 17 Shots 1 | . . . 1 Rammed . | . . . . Targets Rammed . | . . . . Kicked . | . . . . Crushed . | . . . . Highest Temperature 120 | 39 120 20 . Average Temperature 33 | 20 37 12 . Received Heat Transfer 528 | . 228 . 300 Siege Activations . | . . . . Martial Activations . | . . . . Shielding Activations . | . . . . Robots Disrupted . | . . . . Combat Hostiles . | . . . . Robots Corrupted . | . . . . Combat Hostiles . | . . . . Parts Fried . | . . . . Impact Corruptions . | . . . . Robots Melted . | . . . . Combat Hostiles . | . . . . Parts Melted 2 | 1 1 . . Heat Transferred 814 | 333 481 . . Parts Sabotaged . | . . . . Parts Stolen . | . . . . Parts Stripped . | . . . . Power Chain Reactions . | . . . . Alert | -11 -10 -10 -10 ------- Run | Yrd Mat Min Sub Maximum Alert Level 1 | . 1 . . Low Security (%) 90 | 100 82 100 . Level 1 9 | . 17 . . Level 2 . | . . . . Level 3 . | . . . . Level 4 . | . . . . Level 5 . | . . . . High Security . | . . . . Max Security . | . . . . Peak Influence 272 | 5 272 168 . Initial 90 | . . 90 . Average 72 | 1 85 73 . Influence Increases 800 | 10 437 93 260 Destroy 0b10 Robot/C 540 | . 340 60 140 Destroy 0b10 Robot/NC 35 | 10 15 10 . Destroy Leader 70 | . 60 10 . Allied During Kill 15 | . . . 15 Successful Hack 7 | . 7 . . Destroy Structure 13 | . . 13 . Lose Combat Pursuer 120 | . 15 . 105 Influence Decreases 780 | 10 205 325 240 Entered New Map 142 | . . 142 . Time Decay 548 | 10 165 183 190 Lost Part 50 | . 40 . 10 Lost Ally 40 | . . . 40 Squads Dispatched 3 | . 3 . . Investigation 2 | . 2 . . Extermination . | . . . . Reinforcement 1 | . 1 . . Assault . | . . . . Garrison . | . . . . Intercept . | . . . . Searches Triggered . | . . . . Construction Impeded . | . . . . Haulers Reinforced . | . . . . Active Scanning Responses . | . . . . Cargo Convoy Interrupts . | . . . . Stealth | -11 -10 -10 -10 --------- Run | Yrd Mat Min Sub Distress Signals 1 | . 1 . . Communications Jammed . | . . . . Distress Signals . | . . . . Times Spotted 38 | . 19 3 16 Peak Tracking Total 6 | . 5 3 6 Tactical Retreats 3 | . 1 . 2 Traps | -11 -10 -10 -10 ------- Run | Yrd Mat Min Sub Traps Triggered 4 | . 4 . . Indirectly . | . . . . Trap Hack Attempts . | . . . . Triggered . | . . . . Disarmed . | . . . . Reprogrammed . | . . . . Reused . | . . . . Traps Extracted . | . . . . Installed . | . . . . Triggered . | . . . . Machines | -11 -10 -10 -10 ---------- Run | Yrd Mat Min Sub Machines Disabled 3 | . . . 3 Max in Single Turn 3 | . . . 3 Machines Repaired . | . . . . Machines Dismantled . | . . . . Machines Sabotaged . | . . . . Overloaded Fab Kills . | . . . . Hacking | -11 -10 -10 -10 --------- Run | Yrd Mat Min Sub Machines Accessed 1 | . 1 . . Terminals 1 | . 1 . . Fabricators . | . . . . Repair Stations . | . . . . Recycling Units . | . . . . Scanalyzers . | . . . . Garrison Access . | . . . . Total Hacks 1 | . 1 . . Successful 1 | . 1 . . Failed . | . . . . Catastrophic . | . . . . Database Lockouts . | . . . . Manual . | . . . . Terminals 1 | . 1 . . Fabricators . | . . . . Repair Stations . | . . . . Recycling Units . | . . . . Scanalyzers . | . . . . Garrison Access . | . . . . Terminal Hacks 1 | . 1 . . Registered Components 1 | . 1 . . Fabricator Hacks . | . . . . Repair Station Hacks . | . . . . Recycling Unit Hacks . | . . . . Scanalyzer . | . . . . Garrison Access Hacks . | . . . . Unauthorized Hacks . | . . . . Terminals . | . . . . Fabricators . | . . . . Repair Stations . | . . . . Recycling Units . | . . . . Scanalyzers . | . . . . Garrison Access . | . . . . Data Cores Recovered . | . . . . Used . | . . . . Hacking Detections . | . . . . Full Trace Events . | . . . . Feedback Events . | . . . . Feedback Blocked . | . . . . Robot Schematics Acquired . | . . . . Robots Built . | . . . . Authchips . | . . . . Time . | . . . . Total Robot Build Rating . | . . . . Part Schematics Acquired . | . . . . Parts Built . | . . . . Authchips . | . . . . Time . | . . . . Total Part Build Rating . | . . . . Part Studies Acquired . | . . . . Parts Repaired . | . . . . Time . | . . . . Parts Recycled . | . . . . Recycled Matter . | . . . . Retrieved Matter . | . . . . Retrieved Components . | . . . . Parts Scanalyzed . | . . . . Part Schematics Acquired . | . . . . Parts Damaged . | . . . . Bothacking | -11 -10 -10 -10 ------------ Run | Yrd Mat Min Sub Used RIF Installer . | . . . . Robots Hacked . | . . . . Non-combat . | . . . . Combat . | . . . . Robot Hacks Applied . | . . . . Relay Couplers Released . | . . . . Fabnet Peak Effective % . | . . . . Robots Rewired . | . . . . Allies Hacked . | . . . . Hacks Repelled . | . . . . Allies | -11 -10 -10 -10 -------- Run | Yrd Mat Min Sub Total Allies 3 | . . 3 . Largest Group 3 | . . 3 3 Highest-Rated Group 40 | . . 40 40 Highest-Rated Ally 16 | . . 16 16 Total Orders . | . . . . Ally Attacks 20 | . . . 20 Total Damage 206 | . . . 206 Kills 4 | . . . 4 Allies Corrupted . | . . . . Allies Melted . | . . . . Intel | -11 -10 -10 -10 ------- Run | Yrd Mat Min Sub Active Infowar (turns) 512 | 38 474 . . Seismic 512 | 38 474 . . Robot Analysis Total . | . . . . Derelict Logs Recovered 2 | . . 1 1 Drone Launches . | . . . . Drone Recoveries . | . . . . Exploration | -11 -10 -10 -10 ------------- Run | Yrd Mat Min Sub Turns Passed 2078 | 131 702 431 814 Spaces Moved 1058 | 61 291 252 454 Core 22 | 22 . . . Treads 999 | 39 291 252 417 Legs . | . . . . Wheels 37 | . . . 37 Hover . | . . . . Flight . | . . . . Fastest Speed 50 | 50 160 160 95 Average Speed 158 | 167 160 160 154 Slowest Speed 250 | 250 160 160 160 Overloaded Moves . | . . . . Propulsion Burnouts . | . . . . Robots Hopped . | . . . . Potential Cave-ins . | . . . . Cave-ins Triggered . | . . . . Exploration Rate (%) 38 | 4 53 58 39 Regions Visited 3 Branch Regions 2 Pre-discovered Areas 3 | . . 1 2 Known Exits Taken . | . . . . Unknown Exits Taken 3 | 1 1 1 . Scrap Searched 1 | . . 1 . Spaces Dug . | . . . . Terrain Destroyed 82 | . . 15 67 Melee . | . . . . Projectile . | . . . . AOE 82 | . . 15 67 Terrain Rammed . | . . . . Walls Destroyed . | . . . . Machines Disabled . | . . . . Actions | -11 -10 -10 -10 --------- Run | Yrd Mat Min Sub Total 1286 | 77 430 277 502 Wait 74 | . 56 14 4 Move 1055 | 60 290 251 454 Hop . | . . . . Pick Up 15 | 3 8 3 1 Fast Attach 11 | 8 3 . . Attach 11 | . 5 1 5 Detach 3 | 1 2 . . Swap 6 | . 4 1 1 Drop 7 | . 3 3 1 Fire 104 | 5 59 4 36 Melee . | . . . . Ram . | . . . . Kick . | . . . . Crush . | . . . . Escape Stasis . | . . . . Rewire . | . . . . Trap . | . . . . Miscellaneous . | . . . . Route ------- -11/Scrapyard -10/Materials (discovered 2 exits: [*Mat] / [*Min]) -10/Mines (discovered 2 exits: [*Mat] / [*Sub]) -10/Subcaves (discovered 1 exit: [*Rec]) History --------- Turn | Location | Event 12 | -11/Scrapyard | Discovered new exit (range 16) 132 | -11/Scrapyard | Entered Materials 302 | -10/Materials | Build established: Mutant 480 | -10/Materials | Discovered new exit (range 5) 641 | -10/Materials | Lost 3 parts (1n1u1w) 707 | -10/Materials | Core integrity fell below 50% 787 | -10/Materials | Discovered new exit (range 7) 834 | -10/Materials | Entered Mines 855 | -10/Mines | Met a Derelict bent on vengeance 856 | -10/Mines | Discovered new exit (range 6) 910 | -10/Mines | Received a Rocket Launcher from a helpful Derelict 933 | -10/Mines | Learned location of Storage (-7) 1243 | -10/Mines | Assisted by bots powering up and referring to "LRC-V3" 1255 | -10/Mines | Discovered new exit (range 8) 1265 | -10/Mines | Entered Subcaves 1265 | -10/Subcaves | Accompanied by 3 allies 1266 | -10/Subcaves | Approached by a straggling Scientist 1322 | -10/Subcaves | Discovered new exit (range 15) 1521 | -10/Subcaves | Learned location of Zion (-7) 1521 | -10/Subcaves | Met a Zionite searching for "candidates" 1649 | -10/Subcaves | Shifting Twisted Machinery released Battle Rifle 1754 | -10/Subcaves | Core integrity fell below 20% 1784 | -10/Subcaves | Lost 3 parts (3w) 1836 | -10/Subcaves | Shifting Twisted Machinery released Shrapnel Trap 1876 | -10/Subcaves | Shifting Twisted Machinery released Multitool 1993 | -10/Subcaves | Ambushed by Subdwellers from Twisted Machinery 2038 | -10/Subcaves | Lost 3 parts (1p1n1u) 2079 | -10/Subcaves | Destroyed by G-47 Trooper with Particle Gun Last Messages --------------- 01993_ BI-6PP(R) suffers critical hit (Destroy). 01993_ BI-6PP(R) destroyed. 01995_ Propulsion Shielding destroyed. 01995_ Lgt. Treads destroyed. 02007_ J2-75U(R) knocked back. 02007_ Ion Engine destroyed. 02011_ J2-75U(R) affixes Scrap Shield Fragment to Scrap Shield. 02013_ J2-75U(R) knocked back. 02021_ Acquired 43 matter. 02026_ J2-75U(R) knocked back. 02032_ J2-75U(R) destroyed. 02036_ Acquired 7 matter. 02039_ Acquired 6 matter. 02041_ Acquired 4 matter. 02045_ Acquired 8 matter. 02063_ Critical hit (Burn: +37). 02068_ G-34 Mercenary destroyed. 02076_ Sml. Laser fries itself beyond repair. 02077_ Ion Engine fries itself beyond repair. 02079_ Critical hit (Burn: +37). Map ----- +----------------------------------------------------+ | | | | | | | | | | | | | | | ?????????????????????????????????????????????????? | | ?????????????????????????????????????????????????? | | ?????????????????????????????????????????????????? | | ?????????????????????????????????????????????????? | | ?????????????????????????????????????????????????? | | ?????????????????????????????????????????????????? | | ?????????????????????????????????????????????????? | | ?????????????????????????????????????????????????? | | ?????????????????????????????????????????????????? | | ?????????????????????????????????????????????????? | | ?????????????????????????????????????????????????? | | ?????????????????????????????????????????????????? | | ?????????????????????????????????????????????????? | | ?????????????????????????????????????????????????? | | ??????????????????????####?#####?##??????????????? | | ??????????????????????# ## # #%%# ###??????????? | | ?????????????????????## % % #??????????? | | ?????????????????????# %g #?????????? | | ??????????????????????# @ #????????????????? | | ?????????????????????## #######????????????????? | | ???????????????????### #??????????????????????? | | ???????????????##### ## #??????????????????????? | | ???????????????# ""#??????????????????????? | | ???????????????## # " ##?????????????????????? | | ????????????????#### " ###???????????????????? | | ???????????????????## """" #???????????????????? | | ????????????????????# #???????????????????? | | ????????????????????## "#???????????????????? | | ?????????????????????#### #???????????????????? | | ????????????????###?????# "#???????????????????? | | ??????????????### ###### "##??????????????????? | | ??????????????# | ""#??????????????????? | | ???????????# """" &= ""#??????????????????? | | ???????????# " %" ] "##??????????????????? | | ????????????? ##" " ! #???????????????????? | | ???????????????????##""" ######???###????????? | | ????????????????????# # # ##### ##???????? | | ????????????????????## ## #???????? | | ?????????????????????## ## #???????? | | ??????????????????????# ### # # ### #????# ?? | | ??????????????????????# ??###### # ##???## | | ?????????????????????? ???????# ##????# | | ????????????????????? ???????# # #?????# " | +----------------------------------------------------+ Best States ------------- Heat Dissipation 39 Energy Generation 10 Energy Capacity 250 Matter Stores 300 Matter Capacity 300 Sight Range 16 Terrain Scan Density 10 Propulsion Shielding 33 Evasion (%) 41 Recoil Reduction 2 Item Schematics ----------------- None Robot Schematics ------------------ None Fabricated ------------ Nothing Repaired ---------- Nothing Studied --------- None Alien Tech Used ----------------- None Achievements -------------- None Challenges ------------ None Game ------ Seed AbsorptionPowerReprisal Manual? 0 Play Time 00:13:01 Cumulative 47.7 hours Start 2026.06.23 @ 11:11:17 End 2026.06.23 @ 11:20:47 Sessions 1 Manual Loads 0 Difficulty Rogue Special Mode None Game No. 98 Rogue 98 Adventurer 0 Explorer 0 Win Type - Total 0 Types 0/0/0/0/0/0/0/0/0/0 Lore% 23 Gallery% 24 Achievement% 21 Wizard Run 0 Options --------- Layout 0 ASCII 0 Keyboard 0 Movement Mouse Keybinds 0 Fullscreen 2 Font 24/Smallcaps Map View 76x50 Zoom Use 0% Tactical HUD 1 Map Filters NONE Filters NONE Steam 1 RUN: 7def9c9d-6d0a-4003-86a9-eda497716ced